Cogmind - Beta 14 @@@ ROGUE MODE // 2024.08.28 @ 21:03:02 Player: MOPO3 Result: Destroyed by 4G-V0J(R) with Subdweller Machine Gun Performance ------------- Evolutions (0) 0 Regions Visited (3) 600 Robots Destroyed (8) 40 Value Destroyed (158) 158 Prototype IDs (0) 0 Alien Tech Used (0) 0 Bonus (81) 81 TOTAL SCORE: 879 Bonus ------- Follower Combat Kills 81 Cogmind --------- Core Integrity 0/250 Matter 237/300 Energy 61/100 System Corruption 0% Temperature Cool (0) Movement Core (150) Ox2 Location -10/Subcaves Parts ------- > --- POWER (1) -------- (None) > --- PROPULSION (2) --- (None) > --- UTILITY (2) ------ Small Storage Unit > --- WEAPON (2) ------- Small Laser Small Laser > --- INVENTORY (8) ---- Light Ion Engine Heat Sink Heat Sink Peak State ------------ > --- POWER ------------ Light Ion Engine > --- PROPULSION ------- Light Treads Light Treads > --- UTILITY ---------- Small Storage Unit Improved Terrain Scanner > --- WEAPON ----------- Assault Rifle Light Assault Rifle > --- INVENTORY -------- Light Ion Engine Small Laser [Rating: 9] Favorites ----------- Power Light Ion Engine Engine Light Ion Engine Propulsion Light Treads Treads Light Treads Utility Small Storage Unit Device Improved Terrain Scanner Storage Small Storage Unit Weapon Assault Rifle Energy Gun Small Laser Ballistic Gun Assault Rifle Build | -11 -10 -10 -10 ------- Run | Yrd Mat Min Sub Slots Evolved . | . . . . Power . | . . . . Propulsion . | . . . . Utility . | . . . . Weapon . | . . . . Parts Attached 10 | 7 . . 3 Power 2 | 1 . . 1 Engine 2 | 1 . . 1 Core . | . . . . Reactor . | . . . . Propulsion 2 | 2 . . . Treads 2 | 2 . . . Leg . | . . . . Wheel . | . . . . Hover . | . . . . Flight . | . . . . Utility 2 | 2 . . . Device 1 | 1 . . . Storage 1 | 1 . . . Processor . | . . . . Hackware . | . . . . Protection . | . . . . Artifact . | . . . . Weapon 4 | 2 . . 2 Energy Gun 2 | . . . 2 Energy Cannon . | . . . . Ballistic Gun 2 | 2 . . . Ballistic Cannon . | . . . . Launcher . | . . . . Special Weapon . | . . . . Impact Weapon . | . . . . Slashing Weapon . | . . . . Piercing Weapon . | . . . . Special Melee Weapon . | . . . . Unidentified Prototypes . | . . . . Parts Lost 6 | . . . 6 Power 1 | . . . 1 Propulsion 2 | . . . 2 Utility 1 | . . . 1 Weapon 2 | . . . 2 Highest Loss Streak 6 | . . . 6 To Critical Strikes . | . . . . Average Slot Usage (%) 98 | . 100 100 91 Engine 13 | . 14 14 12 Treads 26 | . 28 28 22 Device 13 | . 14 14 13 Storage 14 | . 14 14 14 Ballistic Gun 27 | . 28 28 26 Peak Build Rating 9 | 9 9 9 9 Average Rating 8 | 5 9 9 8 On Entrance 6 | . 9 9 9 Naked Turns . | . . . . Heaviest Build 14 | 12 12 12 14 Greatest Support 40 | 40 40 40 40 Greatest Overweight (x) . | . . . . Average Overweight (x) . | . . . . Largest Inventory Capacity 8 | 8 8 8 8 Average Capacity 7 | 7 8 8 8 Most Carried 6 | 2 6 6 6 Average Carried 4 | 1 2 6 5 Final Capacity 8 | 8 8 8 8 Final Carried 6 | 2 6 6 3 Class Distribution -------------------- 100% | Mutant Dominant Class ---------------- Mutant | -10/Materials Mutant | -10/Mines Mutant | -10/Subcaves Resources | -11 -10 -10 -10 ----------- Run | Yrd Mat Min Sub Matter Collected 424 | 208 130 . 86 Remotely . | . . . . Salvage Created 238 | 25 150 . 63 Parts 12 | 3 7 . 2 Haulers Intercepted . | . . . . Recyclers Shooed 1 | . 1 . . Parts Field Recycled . | . . . . Retrieved Matter . | . . . . Parts Self-Destructed 16 | . . . 16 Prevented . | . . . . Kills | -11 -10 -10 -10 ------- Run | Yrd Mat Min Sub Combat Hostiles Destroyed 3 | . 2 . 1 Guns 3 | . 2 . 1 Classes Destroyed 5 | 1 2 . 2 Tunneler 2 | 2 . . . Recycler 1 | . 1 . . Turret 2 | . . . 2 Swarmer 1 | . . . 1 Grunt 2 | . 2 . . Best Kill Streak 3 | 1 3 . 1 Combat Bots Only 2 | . 2 . 1 Max Kills in Single Turn 1 | 1 1 . 1 Gunslinging . | . . . . Exploded . | . . . . Melee . | . . . . Uniques/NPCs Destroyed . | . . . . Combat | -11 -10 -10 -10 -------- Run | Yrd Mat Min Sub Hostile Shots Fired 109 | . 7 . 102 Missed 36 | . 2 . 34 Damage Taken 945 | . 52 . 893 Core 251 | . 10 . 241 Absorbed by Shields . | . . . . Core Remaining (%) 100 | 100 . . . Volleys Fired 61 | 12 5 . 44 Largest 2 | 2 2 . 2 Hottest 80 | 40 40 . 80 Shots Fired 117 | 24 10 . 83 Gun 117 | 24 10 . 83 Cannon . | . . . . Launcher . | . . . . Special . | . . . . Kinetic 111 | 24 10 . 77 Thermal 6 | . . . 6 Explosive . | . . . . Electromagnetic . | . . . . Robot Hit Streak 28 | 6 4 . 28 Robot Miss Streak 4 | 4 1 . 3 Penetration Max . | . . . . Secondary Targets . | . . . . Shots Hit Robots 81 | 13 6 . 62 Core Hits 18 | 6 3 . 9 Critical Kills . | . . . . Critical Parts Destroyed . | . . . . Critical Strikes . | . . . . Melee Attacks . | . . . . Impact . | . . . . Slashing . | . . . . Piercing . | . . . . Sneak Attacks . | . . . . Combat Hostiles . | . . . . Follow-up Attacks . | . . . . Damage Inflicted 488 | 153 76 . 259 Guns 484 | 153 72 . 259 Cannons . | . . . . Explosions . | . . . . Melee . | . . . . Ramming 4 | . 4 . . Kinetic 484 | 153 72 . 259 Thermal . | . . . . Explosive . | . . . . Electromagnetic . | . . . . Impact . | . . . . Slashing . | . . . . Piercing . | . . . . Highest Corruption . | . . . . Average Corruption . | . . . . Corruption Purged . | . . . . Corruption Blocked . | . . . . Overload Shots . | . . . . Overflow Damage . | . . . . Projectiles . | . . . . Explosions . | . . . . Melee . | . . . . Knockbacks . | . . . . Impact . | . . . . Kinetic . | . . . . Secondary . | . . . . Self-Inflicted Damage . | . . . . Shots . | . . . . Rammed 1 | . 1 . . Targets Rammed 2 | . 2 . . Kicked . | . . . . Crushed 1 | . 1 . . Highest Temperature 6 | . 6 . . Average Temperature 6 | . 6 . . Received Heat Transfer 252 | . 30 . 222 Siege Activations . | . . . . Robots Corrupted . | . . . . Combat Hostiles . | . . . . Parts Fried . | . . . . Impact Corruptions . | . . . . Robots Melted . | . . . . Combat Hostiles . | . . . . Parts Melted . | . . . . Heat Transferred . | . . . . Parts Sabotaged . | . . . . Parts Stolen . | . . . . Parts Stripped . | . . . . Power Chain Reactions . | . . . . Alert | -11 -10 -10 -10 ------- Run | Yrd Mat Min Sub Peak Influence 86 | 10 56 86 . Initial 21 | . 6 21 . Average 19 | 3 19 21 . Maximum Alert Level . | . . . . Low Security (%) 100 | 100 100 100 . Level 1 . | . . . . Level 2 . | . . . . Level 3 . | . . . . Level 4 . | . . . . Level 5 . | . . . . High Security . | . . . . Max Security . | . . . . Squads Dispatched . | . . . . Investigation . | . . . . Extermination . | . . . . Reinforcement . | . . . . Assault . | . . . . Garrison . | . . . . Intercept . | . . . . Searches Triggered . | . . . . Construction Impeded . | . . . . Haulers Reinforced . | . . . . Active Scanning Responses . | . . . . Cargo Convoy Interrupts . | . . . . Stealth | -11 -10 -10 -10 --------- Run | Yrd Mat Min Sub Distress Signals . | . . . . Communications Jammed . | . . . . Distress Signals . | . . . . Times Spotted 11 | . 3 . 8 Peak Tracking Total 3 | . 2 . 3 Tactical Retreats 3 | . . . 3 Traps | -11 -10 -10 -10 ------- Run | Yrd Mat Min Sub Traps Triggered . | . . . . Indirectly . | . . . . Trap Hack Attempts . | . . . . Triggered . | . . . . Disarmed . | . . . . Reprogrammed . | . . . . Reused . | . . . . Traps Extracted . | . . . . Installed . | . . . . Triggered . | . . . . Machines | -11 -10 -10 -10 ---------- Run | Yrd Mat Min Sub Machines Disabled 2 | . . . 2 Max in Single Turn 1 | . . . 1 Machines Repaired . | . . . . Machines Dismantled . | . . . . Machines Sabotaged . | . . . . Overloaded Fab Kills . | . . . . Hacking | -11 -10 -10 -10 --------- Run | Yrd Mat Min Sub Machines Accessed 1 | . 1 . . Terminals 1 | . 1 . . Fabricators . | . . . . Repair Stations . | . . . . Recycling Units . | . . . . Scanalyzers . | . . . . Garrison Access . | . . . . Total Hacks 4 | . 4 . . Successful 1 | . 1 . . Failed 3 | . 3 . . Catastrophic . | . . . . Database Lockouts . | . . . . Manual . | . . . . Terminals 4 | . 4 . . Fabricators . | . . . . Repair Stations . | . . . . Recycling Units . | . . . . Scanalyzers . | . . . . Garrison Access . | . . . . Terminal Hacks 1 | . 1 . . Zone Layout 1 | . 1 . . Fabricator Hacks . | . . . . Repair Station Hacks . | . . . . Recycling Unit Hacks . | . . . . Scanalyzer . | . . . . Garrison Access Hacks . | . . . . Unauthorized Hacks . | . . . . Terminals . | . . . . Fabricators . | . . . . Repair Stations . | . . . . Recycling Units . | . . . . Scanalyzers . | . . . . Garrison Access . | . . . . Data Cores Recovered . | . . . . Used . | . . . . Hacking Detections 1 | . 1 . . Full Trace Events . | . . . . Feedback Events . | . . . . Feedback Blocked . | . . . . Robot Schematics Acquired . | . . . . Robots Built . | . . . . Authchips . | . . . . Time . | . . . . Total Robot Build Rating . | . . . . Part Schematics Acquired . | . . . . Parts Built . | . . . . Authchips . | . . . . Time . | . . . . Total Part Build Rating . | . . . . Parts Repaired . | . . . . Time . | . . . . Parts Recycled . | . . . . Recycled Matter . | . . . . Retrieved Matter . | . . . . Retrieved Components . | . . . . Parts Scanalyzed . | . . . . Part Schematics Acquired . | . . . . Parts Damaged . | . . . . Bothacking | -11 -10 -10 -10 ------------ Run | Yrd Mat Min Sub Used RIF Installer . | . . . . Robots Hacked . | . . . . Non-combat . | . . . . Combat . | . . . . Robot Hacks Applied . | . . . . Relay Couplers Released . | . . . . Fabnet Peak Effective % . | . . . . Robots Rewired . | . . . . Allies Hacked . | . . . . Hacks Repelled . | . . . . Allies | -11 -10 -10 -10 -------- Run | Yrd Mat Min Sub Total Allies 5 | . . 5 . Largest Group 5 | . . 5 5 Highest-Rated Group 85 | . . 85 85 Highest-Rated Ally 31 | . . 31 31 Total Orders . | . . . . Ally Attacks 18 | . . 7 11 Total Damage 246 | . . 127 119 Kills 6 | . . 2 4 Allies Corrupted . | . . . . Allies Melted . | . . . . Intel | -11 -10 -10 -10 ------- Run | Yrd Mat Min Sub Robot Analysis Total . | . . . . Derelict Logs Recovered 1 | . . 1 . Drone Launches . | . . . . Drone Recoveries . | . . . . Exploration | -11 -10 -10 -10 ------------- Run | Yrd Mat Min Sub Turns Passed 1196 | 121 177 663 235 Spaces Moved 604 | 50 98 390 66 Core 4 | 4 . . . Treads 600 | 46 98 390 66 Legs . | . . . . Wheels . | . . . . Hover . | . . . . Flight . | . . . . Fastest Speed 50 | 50 160 160 160 Average Speed 159 | 151 160 160 160 Slowest Speed 160 | 160 160 160 160 Overloaded Moves . | . . . . Propulsion Burnouts . | . . . . Robots Hopped . | . . . . Cave-ins Triggered . | . . . . Exploration Rate (%) 29 | 5 23 85 4 Regions Visited 3 Branch Regions 2 Pre-discovered Areas 1 | . . 1 . Known Exits Taken . | . . . . Unknown Exits Taken 3 | 1 1 1 . Scrap Searched 2 | . . 1 1 Spaces Dug . | . . . . Terrain Destroyed . | . . . . Melee . | . . . . Projectile . | . . . . AOE . | . . . . Terrain Rammed . | . . . . Walls Destroyed . | . . . . Machines Disabled . | . . . . Actions | -11 -10 -10 -10 --------- Run | Yrd Mat Min Sub Total 727 | 70 108 429 120 Wait 46 | . . 40 6 Move 601 | 49 97 389 66 Hop . | . . . . Pick Up 6 | 2 4 . . Fast Attach 7 | 7 . . . Attach 2 | . . . 2 Detach . | . . . . Swap 1 | . . . 1 Drop 1 | . . . 1 Fire 61 | 12 5 . 44 Melee . | . . . . Ram . | . . . . Kick . | . . . . Crush 2 | . 2 . . Escape Stasis . | . . . . Rewire . | . . . . Trap . | . . . . Miscellaneous . | . . . . Route ------- -11/Scrapyard -10/Materials (discovered 2 exits: [*Min x2]) -10/Mines -10/Subcaves (discovered 1 exit: [*Rec]) History --------- Turn | Location | Event 51 | -11/Scrapyard | Discovered new exit (range 14) 122 | -11/Scrapyard | Entered Materials 185 | -10/Materials | Discovered new exit (range 19) 294 | -10/Materials | Discovered new exit (range 16) 299 | -10/Materials | Entered Mines 304 | -10/Mines | Build established: Mutant 316 | -10/Mines | Met a Derelict bent on vengeance 507 | -10/Mines | Assisted by bots powering up and referring to "LRC-V3" 563 | -10/Mines | Learned location of Storage (-8) 920 | -10/Mines | Discovered new exit (range 11) 962 | -10/Mines | Entered Subcaves 962 | -10/Subcaves | Accompanied by 5 allies 967 | -10/Subcaves | Led the pair of lost Derelicts to an unsafe place 991 | -10/Subcaves | Discovered new exit (range 10) 1009 | -10/Subcaves | Lost 5 allies 1126 | -10/Subcaves | Disturbed a concealed Subdweller 1154 | -10/Subcaves | Core integrity fell below 50% 1182 | -10/Subcaves | Core integrity fell below 20% 1197 | -10/Subcaves | Destroyed by 4G-V0J(R) with Subdweller Machine Gun Last Messages --------------- Acquired 3 matter. Subatomizers dissect the Lgt. Angular Momentum Engine. Destroyed Autobeam. Autobeam Turret destroyed. Dropped Lgt. Ion Engine. Acquired 27 matter. Subatomizers dissect the Lgt. Ion Engine. Subatomizers dissect the Lgt. Ion Engine, destroying it. Subatomizers dissect the Beamcaster. 4G-V0J(R) angrily emerges from the Twisted Machinery. Searching scrap... Found Battle Cannon. Found Sub. Machine Gun. Found 47 Matter. 4G-V0J(R): "SUBSUB!" Lgt. Treads destroyed. Ion Engine destroyed. Assault Rifle destroyed. Lgt. Assault Rifle destroyed. Imp. Terrain Scanner destroyed. Map ----- +----------------------------------------------------+ | ???????????????????" ? ?????????#????????????????? | | ?????????????? "????" ????? ??##?????????????????? | | ?????????????????? ??""??????????#???????????????? | | ?????????????????#?#?## #???###??????????????????? | | ???????????????#????##"" ####"####????????"??????? | | ???????????????????""" "" " #????????????????? | | ??????????????? ???? """ " "" #????????????????? | | ?????????????????? "##### #????????????????? | | ?????????????????? ???#????# ##?????#???+??????? | | ????????????????????????#??## ##?????????"?????? | | ??????????????#????######### " #???????????????? | | ???????????????#???#""" "# " " #???????????????? | | ????????????? ?????#" #! "" ##??#?????"?????? | | ??????????#?#??????# % * # * ####?#??? ??#????? | | ??????????????#?####"" =!%% #??#??????"??????? | | ???????????????##?#< % %% [ ###?#?????"??????? | | ?????????????????###" !% #??????????????? | | ???????? ??#???????#" !# ##???#????#?????? | | ???????????#??#????# % ## #????##?????????? | | ??????????????#??#?#""" "## #?????#?????????? | | ??????????#??????#?########## ###???????????????? | | ??????????????????###???????## #???###??????????? | | ????????????????????#??#??#### ###??#?##?????????? | | ??????????#??????????#? ### #???????????????? | | ??????????#??????#???#$ #%#< ##???#??????#???? | | ?????????#?????????##?# &@[ ##?#???????????? | | ??????????????????#?##$ R##< #???#?#???????? | | ?????????????????????##$## #?????????????? | | ????????????????##????### ##????????????? | | ????????????????????????# #?????????????? | | ?????????????????#??????## ##????????#???? | | ?????????????????????????# #?????????????? | | ?????????????????????????## ##?????????????? | | ??????????????????????????## #??????????????? | | ??????????????????????????### ??????????????? | | ?????????????????#??#???????# ##?????????????? | | ???????????????????????????? ##??????????????? | | ????????????????????????????# #???????????????? | | ??????????????????#?????????### #???????????????? | | ???????????????????????????????###???????????????? | | ????????????????????????????#????????????????????? | | ?????????????????????????????????????????????????? | | ?????????????????????????????????????????????????? | | ?????????????????????????????????????????????????? | | ?????????????????????????????????????????????????? | | ?????????????????????????????????????????????????? | | ?????????????????????????????????????????????????? | | ?????????????????????????????????????????????????? | | ?????????????????????????????????????????????????? | | ?????????????????????????????????????????????????? | +----------------------------------------------------+ Best States ------------- Heat Dissipation 25 Energy Generation 10 Energy Capacity 250 Matter Stores 300 Matter Capacity 300 Sight Range 16 Terrain Scan Range 16 Terrain Scan Density 10 Evasion (%) 40 Recoil Reduction 2 Item Schematics ----------------- None Robot Schematics ------------------ None Fabricated ------------ Nothing Alien Tech Used ----------------- None Achievements -------------- None Challenges ------------ None Game ------ Seed PortableCentriumAirjet Manual? 0 Play Time 00:09:32 Cumulative 10.3 hours Start 2024.08.28 @ 20:50:10 End 2024.08.28 @ 21:03:02 Sessions 1 Manual Loads 0 Difficulty Rogue Special Mode None Game No. 17 Rogue 17 Adventurer 0 Explorer 0 Win Type - Total 0 Types 0/0/0/0/0/0/0/0/0 Lore% 5 Gallery% 15 Achievement% 16 Wizard Run 0 Options --------- Layout 0 ASCII 0 Keyboard 0 Movement Numpad Keybinds 0 Fullscreen 1 Font 18/Cog Map View 76x50 Zoom Use 0% Tactical HUD 0 Map Filters NONE Filters NONE Steam 1 RUN: 78921394-6a8d-425e-bfbd-a43b98279dae